Cogmind - Beta 10.2 @@@ ROGUE MODE // 2020.11.28 @ 12:21:22 // Halloween2020/ForbiddenLore Player: whisper Result: Destroyed by B-75 Beast with Magnetic Acceleration Cannon Performance ------------- Evolutions (5) 2500 Regions Visited (15) 3000 Robots Destroyed (131) 655 Value Destroyed (6237) 6237 Prototype IDs (5) 100 Alien Tech Used (0) 0 Bonus (3204) 3204 TOTAL SCORE: 15696 Bonus ------- High Alert Combat Kills 165 Follower Combat Kills 420 Entered Garrisons 800 Used RIF Installer 2000 Friendly Fire -181 Cogmind --------- Core Integrity 0/1000 Matter 300/300 Energy 100/100 System Corruption 9% Temperature Cool (0) Movement Hovering (120) Ox1 Location -5/Upper Caves Parts ------- > --- POWER (1) -------- (None) > --- PROPULSION (4) --- Improved Hover Unit > --- UTILITY (10) ----- Medium Storage Unit Advanced Sensor Array Advanced Signal Interpreter Advanced Targeting Computer Target Analyzer Relay Coupler [Hunter] (2) > --- WEAPON (2) ------- (None) > --- INVENTORY (8) ---- Hardened Heavy Armor Plating Relay Coupler [NC] (31) Relay Coupler [Demolisher] (24) Long-range Proton Cannon Gauss Rifle Chainsword Peak State ------------ > --- POWER ------------ Cooled Ion Engine > --- PROPULSION ------- Light Treads Light Treads Improved Medium Treads Compact Wheel > --- UTILITY ---------- Improved Cooling System Improved Cooling System High-capacity Storage Unit High-capacity Storage Unit High-capacity Storage Unit Advanced Signal Interpreter Relay Coupler [NC] Relay Coupler [Swarmer] Relay Coupler [Hunter] Relay Coupler [Hunter] > --- WEAPON ----------- Long-range Proton Cannon Remote Datajack > --- INVENTORY -------- Reinforced Deuterium Engine Micro Nuclear Core Advanced Sensor Array Improved Light Armor Plating Relay Coupler [NC] Relay Coupler [NC] Relay Coupler [NC] Relay Coupler [NC] Relay Coupler [ARC] Relay Coupler [Grunt] Relay Coupler [Grunt] Relay Coupler [Grunt] Relay Coupler [Brawler] Relay Coupler [Duelist] Relay Coupler [Duelist] Relay Coupler [Demolisher] Relay Coupler [Demolisher] Relay Coupler [Specialist] Relay Coupler [Hunter] High-powered Shock Rifle Tesla Rifle Force Rifle Proton Cannon Autogun Heavy Missile Launcher Remote Datajack Improved Remote Datajack Chainsword [Rating: 59] Favorites ----------- Power Light Nuclear Core Engine Cooled Ion Engine Power Core Light Nuclear Core Propulsion Light Treads Treads Light Treads Leg Aluminum Leg Wheel Armored Wheel Hover Unit Improved Hover Unit Utility High-capacity Storage Unit Device Improved Heat Sink Storage High-capacity Storage Unit Processor Advanced Signal Interpreter Hackware Relay Coupler [Grunt] Protection Light Armor Plating Weapon Assault Cannon Energy Gun Force Rifle Energy Cannon Heavy Particle Cannon Ballistic Gun Assault Rifle Ballistic Cannon Assault Cannon Launcher Rocket Launcher Special Weapon Remote Datajack Slashing Weapon Chainsword Build | -11 -10 -10 -10 -9 -8 -8 -8 -8 -7 -7 -7 -7 -6 -5 -5 ------- Run | Scr Mat Min Exi Min Mat Gar Mat Gar Fac Gar Fac Gar Fac Fac Upp Slots Evolved 10 | . . . . . 4 . . . 2 . . . 2 2 . Power . | . . . . . . . . . . . . . . . . Propulsion 2 | . . . . . 2 . . . . . . . . . . Utility 8 | . . . . . 2 . . . 2 . . . 2 2 . Weapon . | . . . . . . . . . . . . . . . . Parts Attached 204 | 6 16 6 . . 11 25 16 7 10 21 3 25 11 44 3 Power 25 | 1 5 1 . . 2 2 4 1 . 1 . 4 . 4 . Engine 15 | 1 4 1 . . 2 . 4 . . . . 2 . 1 . Core 10 | . 1 . . . . 2 . 1 . 1 . 2 . 3 . Reactor . | . . . . . . . . . . . . . . . . Propulsion 58 | 2 4 4 . . 4 13 2 2 2 2 2 4 2 15 . Treads 17 | . . . . . . 4 . 2 2 1 1 4 2 1 . Leg 16 | . 4 2 . . 3 5 . . . . . . . 2 . Wheel 22 | 2 . 2 . . 1 4 2 . . 1 1 . . 9 . Hover 3 | . . . . . . . . . . . . . . 3 . Flight . | . . . . . . . . . . . . . . . . Utility 42 | 1 4 . . . 2 2 3 1 4 4 . 5 4 9 3 Device 9 | . . . . . . 1 . . 1 1 . 1 2 3 . Storage 8 | 1 4 . . . 1 . . . . . . . . 1 1 Processor 4 | . . . . . . . . . 2 . . . . . 2 Hackware 17 | . . . . . . . 3 1 1 3 . 4 2 3 . Protection 4 | . . . . . 1 1 . . . . . . . 2 . Artifact . | . . . . . . . . . . . . . . . . Weapon 79 | 2 3 1 . . 3 8 7 3 4 14 1 12 5 16 . Energy Gun 5 | . . . . . . . . . . . . . 1 4 . Energy Cannon 6 | . . . . . . . . . . 1 . 1 . 4 . Ballistic Gun 20 | 2 3 . . . 1 1 1 . . 3 1 6 1 1 . Ballistic Cannon 21 | . . 1 . . 2 5 2 1 2 5 . . . 3 . Launcher 3 | . . . . . . 2 . . . . . . . 1 . Special Weapon 21 | . . . . . . . 3 1 2 5 . 5 3 2 . Impact Weapon . | . . . . . . . . . . . . . . . . Slashing Weapon 3 | . . . . . . . 1 1 . . . . . 1 . Piercing Weapon . | . . . . . . . . . . . . . . . . Special Melee Weapon . | . . . . . . . . . . . . . . . . Unidentified Prototypes 2 | . . . . . 2 . . . . . . . . . . Parts Lost 61 | . 1 . . . . 15 . . . 6 1 7 . 27 4 Power 11 | . 1 . . . . 2 . . . 2 . 2 . 3 1 Propulsion 27 | . . . . . . 10 . . . 3 . 3 . 8 3 Utility 8 | . . . . . . 1 . . . . . . . 7 . Weapon 15 | . . . . . . 2 . . . 1 1 2 . 9 . Highest Loss Streak 20 | . 1 . . . . 10 . . . 3 1 5 . 20 4 Average Slot Usage (%) 93 | . 96 100 100 100 96 88 99 100 96 91 92 96 94 76 73 Engine 5 | . 12 14 14 14 8 . 7 1 . . . 3 6 3 . Core 2 | . . . . . . 3 1 7 7 5 . 1 . . 4 Treads 10 | . . . . . . 10 18 18 15 13 22 21 22 13 . Leg 7 | . 25 20 . . 18 12 . . . . . . . . . Wheel 9 | . 2 7 28 28 17 10 18 18 15 11 7 7 . 1 4 Device 3 | . . . . . . 2 . . . 3 7 8 13 9 5 Storage 23 | . 25 28 28 28 25 27 27 27 23 23 23 23 20 14 4 Processor 3 | . . . . . . . . . 6 7 7 7 6 5 15 Hackware 4 | . . . . . . . 7 9 11 9 7 5 10 9 5 Protection 1 | . . . . . 8 3 1 . . . . . . 2 4 Ballistic Gun 10 | . 28 27 14 14 3 . 4 9 7 6 9 10 9 . . Ballistic Cannon 5 | . . . 14 14 14 16 11 4 2 5 5 . . . . Naked Turns . | . . . . . . . . . . . . . . . . Heaviest Build 127 | 9 73 74 74 74 117 116 114 112 111 111 106 115 116 127 55 Greatest Support 93 | 26 26 32 32 32 32 40 24 24 24 24 28 83 93 90 32 Greatest Overweight (x) 36 | . 3 3 2 2 7 10 4 5 5 9 8 5 2 36 1 Average Overweight (x) 3 | . 2 2 2 2 3 5 4 4 4 5 7 2 1 2 . Largest Inventory Capacity 28 | 6 20 20 20 20 28 28 28 28 28 28 28 28 28 28 8 Average Capacity 24 | 5 16 20 20 20 26 28 28 28 28 28 28 28 28 23 7 Most Carried 28 | 6 19 20 20 20 28 28 28 28 28 28 27 28 28 28 7 Average Carried 23 | 3 13 19 19 19 24 25 27 27 27 26 26 25 27 23 4 Final Capacity 28 | 6 20 20 20 20 28 28 28 28 28 28 28 28 28 8 8 Final Carried 28 | 6 19 19 20 20 28 28 28 28 26 28 26 28 28 3 7 Class Distribution -------------------- 36% | Hauler-Mutant 34% | Bothacker-Mutant 20% | Botlord-Mutant 4% | Mutant 4% | Scavenger-Mutant Dominant Class ---------------- Hauler-Mutant | -10/Materials Hauler-Mutant | -10/Mines Hauler-Mutant | -10/Exiles Hauler-Mutant | -9/Mines Hauler-Mutant | -8/Materials Hauler-Mutant | -8/Garrison Bothacker-Mutant | -8/Materials Bothacker-Mutant | -8/Garrison Bothacker-Mutant | -7/Factory Bothacker-Mutant | -7/Garrison Bothacker-Mutant | -7/Factory Bothacker-Mutant | -7/Garrison Botlord-Mutant | -6/Factory Botlord-Mutant | -5/Factory Scavenger-Mutant | -5/Upper Caves Resources | -11 -10 -10 -10 -9 -8 -8 -8 -8 -7 -7 -7 -7 -6 -5 -5 ----------- Run | Scr Mat Min Exi Min Mat Gar Mat Gar Fac Gar Fac Gar Fac Fac Upp Matter Collected 4974 | 215 427 199 . 72 385 789 431 181 222 511 155 577 181 585 44 Remotely . | . . . . . . . . . . . . . . . . Salvage Created 4471 | . 653 211 . 73 385 607 281 255 177 436 127 457 93 716 . Parts 263 | . 54 8 . 5 17 30 28 19 6 22 7 19 9 39 . Haulers Intercepted 3 | . 2 . . . 1 . . . . . . . . . . Recyclers Shooed 5 | . 1 1 . . 1 . 1 . . . . . . 1 . Parts Field Recycled . | . . . . . . . . . . . . . . . . Retrieved Matter . | . . . . . . . . . . . . . . . . Parts Self-Destructed . | . . . . . . . . . . . . . . . . Prevented . | . . . . . . . . . . . . . . . . Kills | -11 -10 -10 -10 -9 -8 -8 -8 -8 -7 -7 -7 -7 -6 -5 -5 ------- Run | Scr Mat Min Exi Min Mat Gar Mat Gar Fac Gar Fac Gar Fac Fac Upp Combat Hostiles Destroyed 109 | . 16 3 . 3 9 22 7 8 3 16 2 10 2 8 . Melee 2 | . . . . . . . 1 1 . . . . . . . Guns 56 | . 16 3 . 2 1 1 4 4 1 10 2 7 2 3 . Cannons 41 | . . . . 1 8 14 2 3 2 6 . 3 . 2 . AOE 9 | . . . . . . 7 . . . . . . . 2 . Classes Destroyed 14 | . 5 1 . . 1 4 2 . . . . . 1 . . Worker 2 | . . . . . . . 1 . . . . . . 1 . Builder 2 | . . . . . . . 1 . . . . . . 1 . Hauler 3 | . 2 . . . 1 . . . . . . . . . . Recycler 7 | . . 1 . 1 . . 1 . 1 . 1 . . 2 . Carrier 1 | . . . . . . 1 . . . . . . . . . Operator 5 | . 3 . . . . . . . 1 . . . . 1 . Watcher 1 | . 1 . . . . . . . . . . . . . . Swarmer 32 | . 6 . . 3 . 3 1 5 . 10 1 3 . . . Grunt 49 | . 10 3 . . 6 12 3 2 2 5 1 5 . . . Brawler 3 | . . . . . . 2 . 1 . . . . . . . Duelist 1 | . . . . . . 1 . . . . . . . . . Sentry 15 | . . . . . 3 3 3 1 1 1 . 2 . 1 . Hunter 4 | . . . . . . 1 . . . . . . . 3 . Programmer 6 | . . . . . . . . . . . . . 2 4 . Best Kill Streak 12 | . 3 3 . 3 3 12 2 2 5 11 3 3 1 5 . Combat Bots Only 12 | . 3 2 . 3 3 12 2 2 3 11 2 3 1 2 . Max Kills in Single Turn 2 | . 1 1 . 1 1 2 2 1 1 1 1 1 1 2 . Gunslinging . | . . . . . . . . . . . . . . . . Exploded 2 | . . . . . . 2 . . . . . . . 1 . Melee 1 | . . . . . . . 1 1 . . . . . . . Uniques/NPCs Destroyed . | . . . . . . . . . . . . . . . . Combat | -11 -10 -10 -10 -9 -8 -8 -8 -8 -7 -7 -7 -7 -6 -5 -5 -------- Run | Scr Mat Min Exi Min Mat Gar Mat Gar Fac Gar Fac Gar Fac Fac Upp Damage Taken 11416 | . 495 265 . 98 396 2231 351 184 244 1526 254 1131 110 3893 238 Core 2079 | . 61 59 . 9 45 320 69 8 13 273 68 133 17 939 65 Absorbed by Shields 8 | . . . . . . . . 8 . . . . . . . Core Remaining (%) 59 | 100 . . . 48 . . . 19 . . . 30 98 . . Volleys Fired 471 | . 68 19 . 9 40 55 38 14 20 82 5 56 7 58 . Largest 2 | . 2 2 . 2 2 2 2 2 2 2 2 2 2 2 . Hottest 161 | . 40 40 . 64 88 88 88 72 72 103 56 103 108 161 . Shots Fired 761 | . 136 38 . 18 80 95 59 23 23 109 10 80 11 78 1 Gun 369 | . 136 38 . 9 9 9 11 12 3 45 10 51 8 28 . Cannon 306 | . . . . 9 71 79 38 9 13 43 . 12 . 31 1 Launcher 10 | . . . . . . 7 . . . . . . . 3 . Special 76 | . . . . . . . 10 2 7 21 . 17 3 16 . Kinetic 622 | . 136 38 . 18 80 88 49 21 16 83 10 51 7 25 . Thermal 38 | . . . . . . . . . . 5 . 12 1 20 . Explosive 10 | . . . . . . 7 . . . . . . . 3 . Electromagnetic 15 | . . . . . . . . . . . . . . 14 1 Robot Hit Streak 24 | . 9 10 . 5 7 8 16 17 13 13 4 18 9 24 1 Robot Miss Streak 6 | . 5 1 . 2 6 4 6 1 1 5 2 6 4 2 . Penetration Max . | . . . . . . . . . . . . . . . . Secondary Targets 7 | . . 1 . . . 1 . . . 1 1 2 . 1 . Max Gunslinging Chain 1 | . . 1 . . . 1 . . . 1 1 1 . 1 . Shots Hit Robots 523 | . 87 30 . 9 46 65 40 17 18 70 7 61 9 63 1 Core Hits 231 | . 42 12 . 4 18 42 12 9 8 25 3 25 6 25 . Critical Hits 13 | . 1 . . . 1 3 1 . 1 . . . . 6 . Critical Kills 4 | . . . . . . 1 . . 1 . . . . 2 . Critical Parts Destroyed 8 | . 1 . . . 1 1 1 . . . . . . 4 . Melee Attacks 8 | . . . . . . . 3 4 . . . . . 1 . Impact . | . . . . . . . . . . . . . . . . Slashing 8 | . . . . . . . 3 4 . . . . . 1 . Piercing . | . . . . . . . . . . . . . . . . Sneak Attacks 1 | . . . . . . . . . . . . . . 1 . Combat Hostiles . | . . . . . . . . . . . . . . . . Follow-up Attacks . | . . . . . . . . . . . . . . . . Damage Inflicted 10084 | . 863 332 . 179 1033 2377 859 337 288 1273 121 880 109 1433 . Guns 3995 | . 863 332 . 62 96 171 188 150 50 679 121 630 109 544 . Cannons 4668 | . . . . 117 937 1301 551 121 238 594 . 250 . 559 . Explosions 1116 | . . . . . . 905 . . . . . . . 211 . Melee 305 | . . . . . . . 120 66 . . . . . 119 . Ramming . | . . . . . . . . . . . . . . . . Kinetic 7650 | . 863 332 . 179 1033 1472 739 271 288 1223 121 630 79 420 . Thermal 768 | . . . . . . . . . . 50 . 250 30 438 . Explosive 1116 | . . . . . . 905 . . . . . . . 211 . Electromagnetic 245 | . . . . . . . . . . . . . . 245 . Impact . | . . . . . . . . . . . . . . . . Slashing 305 | . . . . . . . 120 66 . . . . . 119 . Piercing . | . . . . . . . . . . . . . . . . Highest Corruption 9 | . . . . . . 2 2 2 . . . . 4 9 9 Average Corruption 3 | . . . . . . 2 2 2 . . . . 4 7 9 Corruption Purged . | . . . . . . . . . . . . . . . . Effects 46 | . . . . . . 3 5 4 . . . . 19 7 8 Message Errors 10 | . . . . . . 1 2 2 . . . . 3 1 1 Matter Fused 9 | . . . . . . . . . . . . . 4 2 3 Heat Flow Errors 9 | . . . . . . . 2 . . . . . 6 1 . Energy Discharges 8 | . . . . . . 1 . 1 . . . . 3 . 3 Data Loss (minor) 4 | . . . . . . . . 1 . . . . 2 1 . Misfires 2 | . . . . . . . . . . . . . . 1 1 Targeting Errors 4 | . . . . . . 1 1 . . . . . 1 1 . Overload Shots . | . . . . . . . . . . . . . . . . Overflow Damage 149 | . . . . 23 34 20 12 13 . 10 . . . 37 . Projectiles 73 | . . . . 23 34 . 6 . . 10 . . . . . Explosions 57 | . . . . . . 20 . . . . . . . 37 . Melee 19 | . . . . . . . 6 13 . . . . . . . Knockbacks 44 | . . . . . 10 18 5 2 2 3 . . . 4 . Impact . | . . . . . . . . . . . . . . . . Kinetic 42 | . . . . . 9 18 5 1 2 3 . . . 4 . Secondary 2 | . . . . . 1 . . 1 . . . . . . . Self-Inflicted Damage 154 | . . . . . . 67 . . . . . . . 87 . Shots 4 | . . . . . . 2 . . . . . . . 2 . Rammed . | . . . . . . . . . . . . . . . . Targets Rammed . | . . . . . . . . . . . . . . . . Kicked . | . . . . . . . . . . . . . . . . Crushed . | . . . . . . . . . . . . . . . . Highest Temperature 288 | . 20 9 . 24 288 144 219 16 21 72 . 15 234 82 52 Average Temperature 51 | . 8 3 . 11 75 55 82 9 11 17 . 9 86 20 30 Received Heat Transfer 2865 | . 183 153 . . 216 1071 162 21 135 345 6 339 18 180 36 Siege Activations . | . . . . . . . . . . . . . . . . Robots Corrupted 1 | . . . . . . . . . . . . . . 1 . Combat Hostiles 1 | . . . . . . . . . . . . . . 1 . Parts Fried . | . . . . . . . . . . . . . . . . Impact Corruptions . | . . . . . . . . . . . . . . . . Robots Melted . | . . . . . . . . . . . . . . . . Combat Hostiles . | . . . . . . . . . . . . . . . . Parts Melted 8 | . . . . . . . . . . 1 . 1 . 6 . Heat Transferred 1073 | . . . . . . . . . . 74 . 370 37 592 . Parts Sabotaged . | . . . . . . . . . . . . . . . . Parts Stolen . | . . . . . . . . . . . . . . . . Parts Stripped . | . . . . . . . . . . . . . . . . Power Chain Reactions . | . . . . . . . . . . . . . . . . Missiles Intercepted . | . . . . . . . . . . . . . . . . Alert | -11 -10 -10 -10 -9 -8 -8 -8 -8 -7 -7 -7 -7 -6 -5 -5 ------- Run | Scr Mat Min Exi Min Mat Gar Mat Gar Fac Gar Fac Gar Fac Fac Upp Peak Influence 808 | . 311 93 . 75 241 808 532 623 326 289 209 261 154 48 . Initial 393 | . . 18 . . 29 109 393 337 326 11 151 146 136 5 . Average 202 | . 164 19 . 17 115 567 408 473 221 142 160 172 56 14 . Maximum Alert Level 3 | . 1 . . . 1 3 2 2 1 1 1 1 . . . Low Security (%) 62 | 100 60 100 . 100 86 6 . . 35 76 83 69 100 100 . Level 1 22 | . 39 . . . 13 12 70 40 64 23 16 30 . . . Level 2 11 | . . . . . . 49 29 60 . . . . . . . Level 3 3 | . . . . . . 32 . . . . . . . . . Level 4 . | . . . . . . . . . . . . . . . . Level 5 . | . . . . . . . . . . . . . . . . High Security . | . . . . . . . . . . . . . . . . Max Security . | . . . . . . . . . . . . . . . . Squads Dispatched 14 | . 3 1 . . 2 . . . 1 . 1 . 2 4 . Investigation 1 | . . 1 . . . . . . . . . . . . . Extermination 3 | . . . . . . . . . . . . . 1 2 . Reinforcement 7 | . 3 . . . 1 . . . 1 . . . . 2 . Assault . | . . . . . . . . . . . . . . . . Garrison 3 | . . . . . 1 . . . . . 1 . 1 . . Intercept . | . . . . . . . . . . . . . . . . Construction Impeded . | . . . . . . . . . . . . . . . . Haulers Reinforced . | . . . . . . . . . . . . . . . . Alert ID Control Effect 4 | . . . . . . . . . . . . . 3 1 . Stealth | -11 -10 -10 -10 -9 -8 -8 -8 -8 -7 -7 -7 -7 -6 -5 -5 --------- Run | Scr Mat Min Exi Min Mat Gar Mat Gar Fac Gar Fac Gar Fac Fac Upp Distress Signals 4 | . 1 . . . 1 . 2 . . . . . . . . Communications Jammed . | . . . . . . . . . . . . . . . . Distress Signals . | . . . . . . . . . . . . . . . . Times Spotted 200 | . 34 4 . 3 16 25 20 11 6 28 3 23 4 22 1 Peak Tracking Total 12 | . 3 2 . 3 4 12 4 3 4 5 2 6 1 5 1 Tactical Retreats 9 | . 1 1 . . . 1 2 2 . 2 . . . . . Traps | -11 -10 -10 -10 -9 -8 -8 -8 -8 -7 -7 -7 -7 -6 -5 -5 ------- Run | Scr Mat Min Exi Min Mat Gar Mat Gar Fac Gar Fac Gar Fac Fac Upp Traps Triggered 35 | . 2 . . . . 11 . 5 . 6 . 9 1 1 . Indirectly . | . . . . . . . . . . . . . . . . Trap Hack Attempts . | . . . . . . . . . . . . . . . . Triggered . | . . . . . . . . . . . . . . . . Disarmed . | . . . . . . . . . . . . . . . . Reprogrammed . | . . . . . . . . . . . . . . . . Reused . | . . . . . . . . . . . . . . . . Traps Extracted . | . . . . . . . . . . . . . . . . Installed . | . . . . . . . . . . . . . . . . Triggered . | . . . . . . . . . . . . . . . . Machines | -11 -10 -10 -10 -9 -8 -8 -8 -8 -7 -7 -7 -7 -6 -5 -5 ---------- Run | Scr Mat Min Exi Min Mat Gar Mat Gar Fac Gar Fac Gar Fac Fac Upp Machines Disabled 11 | . . . . . 2 3 . 2 . 2 . 2 . . . Max in Single Turn 1 | . . . . . 1 1 . 1 . 1 . 1 . . . Garrison Relay 9 | . . . . . . 3 . 2 . 2 . 2 . . . Machines Sabotaged . | . . . . . . . . . . . . . . . . Garrisons Compromised . | . . . . . . . . . . . . . . . . Overloaded Fab Kills . | . . . . . . . . . . . . . . . . Fab Network Shutdowns . | . . . . . . . . . . . . . . . . Hacking | -11 -10 -10 -10 -9 -8 -8 -8 -8 -7 -7 -7 -7 -6 -5 -5 --------- Run | Scr Mat Min Exi Min Mat Gar Mat Gar Fac Gar Fac Gar Fac Fac Upp Machines Accessed 24 | . 3 2 1 . 4 . 2 . 5 . 1 . 5 1 . Terminals 12 | . 2 1 . . 1 . 1 . 4 . . . 2 1 . Fabricators 1 | . . . . . . . . . . . . . 1 . . Repair Stations 2 | . . . . . 1 . . . . . . . 1 . . Recycling Units 1 | . 1 . . . . . . . . . . . . . . Scanalyzers 2 | . . . . . 1 . . . . . . . 1 . . Garrison Access 4 | . . . . . 1 . 1 . 1 . 1 . . . . Total Hacks 43 | . 5 3 1 . 7 . 2 . 9 . 1 . 14 1 . Successful 22 | . 2 2 1 . 5 . 1 . 2 . 1 . 8 . . Failed 21 | . 3 1 . . 2 . 1 . 7 . . . 6 1 . Catastrophic 5 | . 1 . . . . . 1 . 1 . . . 2 . . Database Lockouts . | . . . . . . . . . . . . . . . . Manual 14 | . 4 1 . . 3 . 1 . 5 . . . . . . Terminals 26 | . 4 2 . . 3 . 1 . 8 . . . 7 1 . Fabricators 1 | . . . . . . . . . . . . . 1 . . Repair Stations 6 | . . . . . 2 . . . . . . . 4 . . Recycling Units 1 | . 1 . . . . . . . . . . . . . . Scanalyzers 3 | . . . . . 1 . . . . . . . 2 . . Garrison Access 4 | . . . . . 1 . 1 . 1 . 1 . . . . Terminal Hacks 7 | . . 2 1 . 1 . . . . . . . 3 . . Record 1 | . . . 1 . . . . . . . . . . . . Prototype ID Bank 1 | . . . . . . . . . . . . . 1 . . Open Door 1 | . . 1 . . . . . . . . . . . . . Fabricator Index 1 | . . . . . . . . . . . . . 1 . . Registered Components 1 | . . . . . . . . . . . . . 1 . . Zone Layout 2 | . . 1 . . 1 . . . . . . . . . . Fabricator Hacks . | . . . . . . . . . . . . . . . . Repair Station Hacks 5 | . . . . . 2 . . . . . . . 3 . . Scan Component 3 | . . . . . 1 . . . . . . . 2 . . Repair 2 | . . . . . 1 . . . . . . . 1 . . Recycling Unit Hacks . | . . . . . . . . . . . . . . . . Scanalyzer 2 | . . . . . . . . . . . . . 2 . . Insert Component 1 | . . . . . . . . . . . . . 1 . . Analyze 1 | . . . . . . . . . . . . . 1 . . Garrison Access Hacks 4 | . . . . . 1 . 1 . 1 . 1 . . . . Unlock Access 4 | . . . . . 1 . 1 . 1 . 1 . . . . Unauthorized Hacks 4 | . 2 . . . 1 . . . 1 . . . . . . Terminals 3 | . 1 . . . 1 . . . 1 . . . . . . Operators 3 | . 1 . . . 1 . . . 1 . . . . . . Fabricators . | . . . . . . . . . . . . . . . . Repair Stations . | . . . . . . . . . . . . . . . . Recycling Units 1 | . 1 . . . . . . . . . . . . . . Monitor 1 | . 1 . . . . . . . . . . . . . . Scanalyzers . | . . . . . . . . . . . . . . . . Garrison Access . | . . . . . . . . . . . . . . . . Data Cores Recovered . | . . . . . . . . . . . . . . . . Used . | . . . . . . . . . . . . . . . . Hacking Detections 16 | . 2 1 . . 2 . 1 . 5 . . . 4 1 . Full Trace Events . | . . . . . . . . . . . . . . . . Feedback Events . | . . . . . . . . . . . . . . . . Feedback Blocked . | . . . . . . . . . . . . . . . . Robot Schematics Acquired . | . . . . . . . . . . . . . . . . Robots Built . | . . . . . . . . . . . . . . . . Matter . | . . . . . . . . . . . . . . . . Time . | . . . . . . . . . . . . . . . . Total Robot Build Rating . | . . . . . . . . . . . . . . . . Part Schematics Acquired 1 | . . . . . . . . . . . . . 1 . . Parts Built . | . . . . . . . . . . . . . . . . Matter . | . . . . . . . . . . . . . . . . Time . | . . . . . . . . . . . . . . . . Total Part Build Rating . | . . . . . . . . . . . . . . . . Parts Repaired 2 | . . . . . 1 . . . . . . . 1 . . Time 52 | . . . . . 26 . . . . . . . 26 . . Parts Recycled . | . . . . . . . . . . . . . . . . Recycled Matter . | . . . . . . . . . . . . . . . . Retrieved Matter . | . . . . . . . . . . . . . . . . Retrieved Components . | . . . . . . . . . . . . . . . . Parts Scanalyzed 1 | . . . . . . . . . . . . . 1 . . Part Schematics Acquired 1 | . . . . . . . . . . . . . 1 . . Parts Damaged . | . . . . . . . . . . . . . . . . Bothacking | -11 -10 -10 -10 -9 -8 -8 -8 -8 -7 -7 -7 -7 -6 -5 -5 ------------ Run | Scr Mat Min Exi Min Mat Gar Mat Gar Fac Gar Fac Gar Fac Fac Upp Used RIF Installer 4 | . . . . . . 1 . 1 . 1 . 1 . . . Threat Obfuscator 1 | . . . . . . . . 1 . . . . . . . Zone Cloak 1 | . . . . . . . . . . 1 . . . . . Alert ID Control 1 | . . . . . . . . . . . . 1 . . . Robots Hacked 41 | . . . . . . . 5 1 4 9 . 11 3 8 . Non-combat 7 | . . . . . . . 2 . 2 . . . 1 2 . Combat 34 | . . . . . . . 3 1 2 9 . 11 2 6 . Robot Hacks Applied 46 | . . . . . . . 6 1 6 10 . 12 3 8 . no_distress 1 | . . . . . . . . . . . . . . 1 . generate_echo 1 | . . . . . . . . . 1 . . . . . . start_evac 1 | . . . . . . . . . . . . . 1 . . check_alert 1 | . . . . . . . . . . . . . . 1 . purge_threat 1 | . . . . . . . . . 1 . . . . . . mark_security 1 | . . . . . . . 1 . . . . . . . . find_garrison 2 | . . . . . . . 1 . 1 . . . . . . scatter_targeting 1 | . . . . . . . . . . 1 . . . . . spike_heat 2 | . . . . . . . . . . 1 . 1 . . . overload_power 2 | . . . . . . . 1 . . 1 . . . . . amplify_resonance 3 | . . . . . . . . . 1 . . 1 . 1 . disable_weapons 1 | . . . . . . . . . . . . . . 1 . reboot_system 3 | . . . . . . . 1 . . 1 . . . 1 . go_dormant 2 | . . . . . . . . . 1 . . 1 . . . overwrite_iff 9 | . . . . . . . . 1 1 2 . 4 . 1 . streamctrl_high 6 | . . . . . . . . . . 2 . 2 1 1 . formatsys_low 1 | . . . . . . . 1 . . . . . . . . formatsys_high 8 | . . . . . . . 1 . . 2 . 3 1 1 . Relay Couplers Released 37 | . . . . . . 13 . 6 . 10 . 8 . . . Machine Destruction 37 | . . . . . . 13 . 6 . 10 . 8 . . . Attached 16 | . . . . . . . 2 1 1 3 . 4 2 3 . Robots Rewired . | . . . . . . . . . . . . . . . . Allies Hacked . | . . . . . . . . . . . . . . . . Hacks Repelled . | . . . . . . . . . . . . . . . . Allies | -11 -10 -10 -10 -9 -8 -8 -8 -8 -7 -7 -7 -7 -6 -5 -5 -------- Run | Scr Mat Min Exi Min Mat Gar Mat Gar Fac Gar Fac Gar Fac Fac Upp Total Allies 25 | . . . . 1 . . 2 1 1 6 . 9 2 3 . Largest Group 3 | . . . . 1 1 . 1 2 2 3 1 2 2 1 . Highest-Rated Group 64 | . . . . 31 31 . 16 27 27 56 32 48 64 41 . Highest-Rated Ally 41 | . . . . 31 31 . 16 16 16 32 32 32 32 41 . Total Orders 5 | . . . . . . . 1 . 1 3 . . . . . STAY 1 | . . . . . . . . . . 1 . . . . . AID 4 | . . . . . . . 1 . 1 2 . . . . . Ally Attacks 81 | . . . . . 3 . 4 2 2 22 7 28 7 6 . Total Damage 1600 | . . . . . 42 . 51 16 28 472 115 412 226 238 . Kills 15 | . . . . . . . 2 . . 3 1 4 3 2 . Allies Corrupted . | . . . . . . . . . . . . . . . . Allies Melted . | . . . . . . . . . . . . . . . . Intel | -11 -10 -10 -10 -9 -8 -8 -8 -8 -7 -7 -7 -7 -6 -5 -5 ------- Run | Scr Mat Min Exi Min Mat Gar Mat Gar Fac Gar Fac Gar Fac Fac Upp Robot Analysis Total . | . . . . . . . . . . . . . . . . Derelict Logs Recovered 1 | . . 1 . . . . . . . . . . . . . Drone Launches . | . . . . . . . . . . . . . . . . Drone Recoveries . | . . . . . . . . . . . . . . . . Exploration | -11 -10 -10 -10 -9 -8 -8 -8 -8 -7 -7 -7 -7 -6 -5 -5 ------------- Run | Scr Mat Min Exi Min Mat Gar Mat Gar Fac Gar Fac Gar Fac Fac Upp Turns Passed 11634 | 55 1348 1027 345 302 676 1327 708 640 565 896 249 953 1283 935 325 Spaces Moved 6029 | 43 563 522 287 216 399 649 414 336 358 420 137 371 665 375 274 Core 14 | 2 . . . . . . . . . . . . . 12 . Treads 1443 | . . . . . . 154 . 65 30 . . 323 665 206 . Legs 833 | . 502 320 . . . 2 . . . . . . . 9 . Wheels 3430 | 41 61 202 287 216 399 493 414 271 328 420 137 48 . 113 . Hover 309 | . . . . . . . . . . . . . . 35 274 Flight . | . . . . . . . . . . . . . . . . Fastest Speed 50 | 50 90 120 120 120 120 120 130 130 130 130 125 125 180 50 57 Average Speed 155 | 88 180 175 120 120 130 160 130 155 140 146 165 193 180 165 115 Slowest Speed 1850 | 100 210 210 120 120 170 270 130 260 260 180 170 260 200 1850 120 Overloaded Moves . | . . . . . . . . . . . . . . . . Propulsion Burnouts . | . . . . . . . . . . . . . . . . Robots Hopped . | . . . . . . . . . . . . . . . . Cave-ins Triggered . | . . . . . . . . . . . . . . . . Exploration Rate (%) 41 | 3 68 92 58 57 24 77 42 52 9 63 6 51 22 7 26 Regions Visited 15 Branch Regions 4 Pre-discovered Areas 1 | . . . 1 . . . . . . . . . . . . Known Exits Taken 6 | . . . . . 1 . 1 . 1 . 1 . 1 1 . Unknown Exits Taken 5 | 1 1 1 1 1 . . . . . . . . . . . Scrap Searched 5 | . . 1 . 2 . . . . . . . . . . 2 Spaces Dug . | . . . . . . . . . . . . . . . . Terrain Destroyed 78 | . . . . 1 14 33 6 . . . . . . 24 . Melee . | . . . . . . . . . . . . . . . . Projectile 23 | . . . . 1 14 . 6 . . . . . . 2 . AOE 55 | . . . . . . 33 . . . . . . . 22 . Terrain Rammed . | . . . . . . . . . . . . . . . . Walls Destroyed . | . . . . . . . . . . . . . . . . Machines Disabled . | . . . . . . . . . . . . . . . . Actions | -11 -10 -10 -10 -9 -8 -8 -8 -8 -7 -7 -7 -7 -6 -5 -5 --------- Run | Scr Mat Min Exi Min Mat Gar Mat Gar Fac Gar Fac Gar Fac Fac Upp Total 7529 | 56 776 599 287 242 478 835 528 428 397 595 149 527 741 607 284 Wait 400 | 2 103 38 . 14 1 4 24 12 5 13 3 23 44 114 . Move 6017 | 42 562 521 286 215 399 648 414 335 358 419 136 370 664 374 274 Hop . | . . . . . . . . . . . . . . . . Pick Up 113 | 6 15 5 1 2 15 15 12 7 1 9 1 12 6 4 2 Fast Attach 77 | 6 4 1 . . 6 11 4 1 1 3 . 5 4 28 3 Attach 34 | . . . . . 3 9 . . 2 3 2 5 3 7 . Detach 11 | . . 1 . . 2 . 1 1 1 2 . . 1 . 2 Swap 93 | . 12 5 . . 2 5 12 6 7 15 1 15 4 9 . Drop 106 | . 12 9 . 2 10 12 18 8 2 4 1 5 8 12 3 Fire 471 | . 68 19 . 9 40 55 38 14 20 82 5 56 7 58 . Melee 8 | . . . . . . . 3 4 . . . . . 1 . Ram . | . . . . . . . . . . . . . . . . Kick . | . . . . . . . . . . . . . . . . Crush . | . . . . . . . . . . . . . . . . Escape Stasis 197 | . . . . . . 76 . 40 . 45 . 36 . . . Rewire 2 | . . . . . . . 2 . . . . . . . . Trap . | . . . . . . . . . . . . . . . . Miscellaneous . | . . . . . . . . . . . . . . . . Route ------- -11/Scrapyard -10/Materials (discovered 3 exits: [*Mat x2] / *Min) -10/Mines (discovered 3 exits: [*Mat x2] / *Exi) -10/Exiles -9/Mines -8/Materials -8/Garrison (discovered 3 exits: *Mat x3) -8/Materials (discovered 2 exits: *Fac / Gar) -8/Garrison (discovered 2 exits: *Fac x2) -7/Factory (discovered 4 exits: *Fac x2 / *Sto / Gar) -7/Garrison (discovered 3 exits: *Fac x3) -7/Factory -7/Garrison (discovered 2 exits: *Fac x2) -6/Factory -5/Factory -5/Upper Caves History --------- Turn | Location | Event 30 | -11/Scrapyard | Discovered new exit (range 15) 56 | -11/Scrapyard | Entered Materials 309 | -10/Materials | Build established: Mutant 347 | -10/Materials | Discovered new exit (range 8) 600 | -10/Materials | Discovered new exit (range 11) 710 | -10/Materials | Build established: Hauler-Mutant 1381 | -10/Materials | Discovered new exit (range 11) 1404 | -10/Materials | Entered Mines 1404 | -10/Mines | Discovered new exit (range 8) 1522 | -10/Mines | Discovered new exit (range 4) 1804 | -10/Mines | Learned Materials stockpile data 1825 | -10/Mines | A weapon hastily lodged in a ceiling crevice suddenly fell to the ground 2390 | -10/Mines | Met a Derelict shopkeep closing up shop 2425 | -10/Mines | Deemed a non-threat by the Exiles lab entrance 2426 | -10/Mines | Discovered new exit (range 5) 2431 | -10/Mines | Entered Exiles 2461 | -10/Exiles | Met 8R-AWN 2483 | -10/Exiles | Met EX-HEX 2531 | -10/Exiles | Met EX-DEC 2537 | -10/Exiles | Learned location of Zion (-6) 2760 | -10/Exiles | Discovered new exit (range 15) 2776 | -10/Exiles | Entered Mines 2806 | -9/Mines | Received a Rocket Launcher from a helpful Derelict 2893 | -9/Mines | Discovered new exit (range 8) 3006 | -9/Mines | Core integrity fell below 50% 3019 | -9/Mines | Escorted by a lone wolf Derelict 3078 | -9/Mines | Entered Materials 3078 | -8/Materials | Accompanied by 1 ally 3078 | -8/Materials | Evolved 4 slots: Propulsion x2, Utility x2 3086 | -8/Materials | Garrison activated, responded to threat 3428 | -8/Materials | Repaired Com. Wheel 3754 | -8/Materials | Identified exit to Garrison 3754 | -8/Materials | Entered Garrison 3810 | -8/Garrison | Triggered checkpoint 3893 | -8/Garrison | Core integrity fell below 50% 3921 | -8/Garrison | Lost 10 parts (2p5n1u2w) 3929 | -8/Garrison | Destroyed 12 combat bots 3956 | -8/Garrison | Triggered checkpoint 4036 | -8/Garrison | Discovered new exit (range 15) 4145 | -8/Garrison | Discovered new exit (range 8) 4188 | -8/Garrison | Triggered checkpoint 4317 | -8/Garrison | Discovered new exit (range 9) 4341 | -8/Garrison | Installed Relay Interface Framework 4372 | -8/Garrison | Triggered checkpoint 4396 | -8/Garrison | Garrison Relay disabled 4566 | -8/Garrison | Triggered checkpoint 4656 | -8/Garrison | Garrison Relay disabled 4916 | -8/Garrison | Triggered checkpoint 4940 | -8/Garrison | Garrison Relay disabled 4974 | -8/Garrison | Build established: Bothacker-Mutant 5081 | -8/Garrison | Entered Materials 5715 | -8/Materials | Discovered new exit (range 16) 5787 | -8/Materials | Identified exit to Garrison 5789 | -8/Materials | Entered Garrison 5789 | -8/Garrison | Accompanied by 1 ally 5858 | -8/Garrison | Triggered checkpoint 5946 | -8/Garrison | Discovered new exit (range 12) 6036 | -8/Garrison | Triggered checkpoint 6063 | -8/Garrison | Garrison Relay disabled 6144 | -8/Garrison | Triggered checkpoint 6191 | -8/Garrison | Discovered new exit (range 12) 6213 | -8/Garrison | Expanded RIF knowledge: Threat Obfuscation 6262 | -8/Garrison | Triggered checkpoint 6265 | -8/Garrison | Core integrity fell below 20% 6330 | -8/Garrison | Garrison Relay disabled 6429 | -8/Garrison | Entered Factory 6429 | -7/Factory | Accompanied by 1 ally 6429 | -7/Factory | Evolved 2 slots: Utility x2 6587 | -7/Factory | Discovered new exit (range 10) 6634 | -7/Factory | Discovered new exit (range 17) 6857 | -7/Factory | Discovered new exit (range 9) 6934 | -7/Factory | Identified exit to Storage 6991 | -7/Factory | Identified exit to Garrison 6994 | -7/Factory | Entered Garrison 6994 | -7/Garrison | Accompanied by 1 ally 7034 | -7/Garrison | Triggered checkpoint 7130 | -7/Garrison | Discovered new exit (range 11) 7220 | -7/Garrison | Triggered checkpoint 7322 | -7/Garrison | Triggered checkpoint 7343 | -7/Garrison | Destroyed 11 combat bots 7352 | -7/Garrison | Lost 3 parts (1p2n) 7429 | -7/Garrison | Discovered new exit (range 12) 7490 | -7/Garrison | Triggered checkpoint 7533 | -7/Garrison | Garrison Relay disabled 7678 | -7/Garrison | Discovered new exit (range 12) 7691 | -7/Garrison | Identified exit to Factory 7701 | -7/Garrison | Expanded RIF knowledge: Zone Cloak 7738 | -7/Garrison | Triggered checkpoint 7821 | -7/Garrison | Garrison Relay disabled 7890 | -7/Garrison | Entered Factory 7890 | -7/Factory | Accompanied by 1 ally 8083 | -7/Factory | Garrison activated, responded to threat 8099 | -7/Factory | Core integrity fell below 50% 8130 | -7/Factory | Identified exit to Garrison 8139 | -7/Factory | Entered Garrison 8139 | -7/Garrison | Accompanied by 1 ally 8248 | -7/Garrison | Triggered checkpoint 8330 | -7/Garrison | Triggered checkpoint 8387 | -7/Garrison | Discovered new exit (range 14) 8544 | -7/Garrison | Triggered checkpoint 8604 | -7/Garrison | Lost 5 parts (1p2n2w) 8661 | -7/Garrison | Discovered new exit (range 10) 8679 | -7/Garrison | Identified exit to Factory 8693 | -7/Garrison | Expanded RIF knowledge: Alert ID Control 8744 | -7/Garrison | Triggered checkpoint 8803 | -7/Garrison | Garrison Relay disabled 8987 | -7/Garrison | Build established: Botlord-Mutant 8990 | -7/Garrison | Triggered checkpoint 9010 | -7/Garrison | Garrison Relay disabled 9092 | -7/Garrison | Entered Factory 9092 | -6/Factory | Evolved 2 slots: Utility x2 9760 | -6/Factory | Repaired Lgt. Treads 10276 | -6/Factory | Discovered new exit (range 14) 10314 | -6/Factory | Garrison activated, responded to threat 10333 | -6/Factory | Identified exit to Factory 10375 | -6/Factory | Entered another Factory area 10375 | -5/Factory | Accompanied by 1 ally 10375 | -5/Factory | Evolved 2 slots: Utility x2 11077 | -5/Factory | Lost 7 parts (1p4n2w) 11077 | -5/Factory | Discovered new exit (range 9) 11140 | -5/Factory | Core integrity fell below 50% 11165 | -5/Factory | Core integrity fell below 20% 11196 | -5/Factory | Identified exit to Upper Caves 11218 | -5/Factory | Lost 20 parts (2p4n7u7w) 11310 | -5/Factory | Entered Upper Caves 11521 | -5/Upper Caves | Build established: Scavenger-Mutant 11625 | -5/Upper Caves | Spotted B-75 Beast 11635 | -5/Upper Caves | Destroyed by B-75 Beast with Magnetic Acceleration Cannon Last Messages --------------- 11484_ Acquired 2 matter. 11488_ J9-091(k) breaks down the debris. 11489_ OQ-YJK(k) breaks down the debris. 11491_ Acquired 1 matter. 11492_ Acquired 6 matter. 11504_ J9-091(k) breaks down the debris. 11505_ OQ-YJK(k) breaks down the debris. 11512_ System corrupted: Matter fused (-8). 11585_ System corrupted: Energy discharge (-107). 11618_ Dropped Med. Storage Unit. 11619_ Dropped Relay Coupler [Demolisher]. 11620_ Dropped Hrd. Heavy Armor Plating. 11620_ Acquired Med. Storage Unit. 11622_ Acquired Relay Coupler [Demolisher]. 11624_ Acquired Hrd. Heavy Armor Plating. 11626_ Imp. Hover Unit destroyed. 11626_ Knocked back. 11629_ Neutrino Core destroyed. 11629_ Com. Wheel destroyed. 11629_ Antigrav System destroyed. Map ----- +----------------------------------------------------+ | ?????????????????????????????????????????????????? | | ?????????????????????????????????????????????????? | | ?????????????????????????????????????????????????? | | ?????????????????????????????????????????????????? | | ?????????????????????????????????????????????????? | | ?????????????????????????????????????????????????? | | ?????????????????????????????????????????????????? | | ?????????????????????????????????????????????????? | | ?????????????????????????????????????????????????? | | ?????????????????????????????????????????????????? | | ?????????????????????????????????????????????????? | | ????????????????????????????????##???????????????? | | ???????????????????????????????## #####??????????? | | ???????????????????????????????# ###????????? | | ???????????????????????????????## ########## | | ????????????????????????????????##### # | | ????????????????????#??????????????## # | | ????????????????????# ??????????##?# ###### # | | ????????????????????# ??????????# ## #??### # | | ????????????????????? ?????????# #?## # # | | ?????????????????????# ?????????# ### | | ?????????????????????# ????????# | | ???????????g?????????# ????????# # | | ??????????????????????# ???????# ####### | | ??????????????????????# ###????# #???# # | | ????????????g?????????# @;####?# #???# | | ??????????????????????# ### ##???## # | | ??????????????????????# ###?????##### | | ?????????????????# #???????????? | | ????????????????# ???????? | | ???????????????# ????? | | ??????????????# #??? | | ??????????????# ## ## ??? | | ?????????????? ?# ## # ??? | | ?????????????? ??# ### #? ??? | | ?????????????? ???# ?# BB ? ???? | | ?????????????? ???# #### ? BB ? ???? | | ???????????????????## #???# ? ???? | | ????????????????????###????# ??????? | | ???????????????????????????# ### ??????? | | ???????????????????????????#### #?? ????????? | | ???????????????????????????????? ?? ??????????? | | ????????????????????????????????? ??????????????# | | ?????????????????????????????????????????????????# | | ?????????????????????????????????????????????????# | | ????????????????????????????????????????????????# | | ????????????????????????????????????????????????# | | ????????????????????????????????????????????????## | | ?????????????????????????????????????????????????# | | ?????????????????????????????????????????????????? | +----------------------------------------------------+ Best States ------------- Heat Dissipation 94 Energy Generation 19 Energy Capacity 315 Matter Stores 300 Matter Capacity 300 Sight Range 22 Robot Scan Range 16 Terrain Scan Range 14 Terrain Scan Density 10 Armor Coverage 600 Evasion (%) 50 Targeting Accuracy 8 Target Analysis 5 Recoil Reduction 4 Offensive Hacking 10 Relay Coupler Types 63 Relay Coupler Value 3 Item Schematics ----------------- Remote Datajack | -6/Factory | Scanalyzed Robot Schematics ------------------ None Fabricated ------------ Nothing Alien Tech Used ----------------- None Achievements -------------- Assimilation Complete Error 47 Factory Defaults Challenges ------------ None Game ------ Seed SpreadDimensionalLeg Manual? 0 Play Time 02:36:06 Cumulative 50.4 hours Start 2020.11.22 @ 12:26:59 End 2020.11.28 @ 12:21:22 Sessions 9 Manual Loads 0 Difficulty Rogue Special Mode Halloween2020/ForbiddenLore Game No. 17 Rogue 17 Adventurer 0 Explorer 0 Win Type - Total 1 Types 1/0/0/0/0/0/0/0/0 Lore% 43 Gallery% 41 Achievement% 38 Wizard Run 0 Options --------- ASCII 1 Keyboard 1 Movement Vi Keybinds 0 Fullscreen 2 Font 24/Proggy Map View 76x50 Tactical HUD 1 Map Filters NONE Filters NONE Steam 1 RUN: ca692216-0171-4392-8126-3c7b96b34e5a